lending/lending_fUSD_20250303
["ID","MTS","AMOUNT","RATE_DAILY","PERIOD"]
[355193430,1740984632094,-267.44990134,0.00014896,2]
[355193431,1740984632105,-500.0,0.00014896,2]
[355193432,1740984632115,-500.0,0.00014896,2]
[355193433,1740984632125,-500.0,0.00014896,2]
[355193434,1740984632135,-500.0,0.00014896,2]
[355193435,1740984632144,-500.0,0.00014896,2]
[355193436,1740984632154,-500.0,0.00014896,2]
[355193437,1740984632164,-417.46676771,0.00014896,2]
[355193438,1740984632173,-500.0,0.00014896,2]
[355193439,1740984632183,-500.0,0.00014896,2]
[355193440,1740984632192,-500.0,0.00014896,2]
[355193441,1740984632202,-500.0,0.00014896,2]
[355193442,1740984632211,-500.0,0.00014896,2]
[355193443,1740984632221,-500.0,0.00014896,2]
[355193444,1740984632230,-500.0,0.00014896,2]
[355193445,1740984632240,-399.88955729,0.00014896,2]
[355193446,1740984632252,-100.11044271,0.00014896,2]
[355193447,1740984632262,-500.0,0.00014896,2]
[355193448,1740984632272,-500.0,0.00014896,2]
[355193449,1740984632281,-500.0,0.00014896,2]
[355193450,1740984632291,-500.0,0.00014896,2]
[355193451,1740984632301,-882.8079037,0.00014897,2]
[355193452,1740984632315,-1831.89165361,0.00014897,2]
[355193453,1740984632335,-32115.02825954,0.00014897,2]
[355193454,1740984632347,-743.20008474,0.00014897,2]
[355193455,1740984632378,-9248.83709659,0.00014897,2]
[355193456,1740984632392,-6256.1065,0.00014897,2]
[355193457,1740984632406,-4300.91743727,0.00014897,2]
[355193458,1740984632420,-6127.228,0.00014897,2]
[355193459,1740984632435,-10904.14675461,0.00014897,2]
[355193460,1740984632515,-355018.69477984,0.00014897,2]
[355193461,1740984632527,-518.32839176,0.00014897,2]
[355193469,1740984637809,-953.82884201,0.00014897,2]
[355193470,1740984638097,-10736.77896251,0.00014897,2]
[355193471,1740984638109,-10865.48604417,0.00014897,2]
[355193472,1740984638120,-5762.24845647,0.00014897,2]
[355193473,1740984638131,-9109.46849774,0.00014897,2]
[355193474,1740984638143,-1572.82199258,0.00014897,2]
[355193475,1740984638154,-3688.36,0.00014897,2]
[355193476,1740984638220,-858.58510357,0.00014897,2]
[355193477,1740984638236,-1090.39,0.00014897,2]
[355193478,1740984638250,-513.33808124,0.00014897,2]
[355193479,1740984638261,-8188.2015616,0.00014897,2]
[355193480,1740984638270,-500.0,0.00014899,2]
[355193481,1740984638280,-599.04520876,0.00014899,2]
[355193482,1740984638289,-500.0,0.00014899,2]
[355193483,1740984638298,-500.0,0.00014899,2]
[355193484,1740984638308,-43458.75721541,0.000149,2]
[355193485,1740984638319,-867.82654312,0.000149,2]
[355193486,1740984638334,-2547.105,0.000149,2]
[355193487,1740984638346,-252.90102083,0.000149,2]
[355193488,1740984638357,-611.70497818,0.000149,2]
[355193489,1740984638373,-2219.533677,0.000149,2]
[355193490,1740984638384,-1109.58021,0.000149,2]
[355193491,1740984638395,-12642.066,0.000149,2]
[355193492,1740984638407,-1774.37970282,0.000149,2]
[355193493,1740984638423,-646.53171669,0.000149,2]
[355193495,1740984638435,-1450.59334652,0.000149,2]
[355193497,1740984638446,-9440.0,0.000149,2]
[355193498,1740984638459,-20728.92184322,0.000149,2]
[355193499,1740984638470,-2787.51492561,0.000149,2]
[355193501,1740984638482,-77616.84759208,0.000149,2]
[355193502,1740984638491,-10071.0,0.000149,2]
[355193503,1740984638501,-33303.82737187,0.000149,2]
[355193504,1740984638511,-622.07205031,0.000149,2]
[355193505,1740984638520,-1000.0,0.000149,2]
[355193506,1740984638530,-1000.0,0.000149,2]
[355193507,1740984638539,-1000.0,0.000149,2]
[355193508,1740984638549,-1000.0,0.000149,2]
[355193509,1740984638558,-1000.0,0.000149,2]
[355193510,1740984638568,-1000.0,0.000149,2]
[355193513,1740984638579,-1000.0,0.000149,2]
[355193514,1740984638814,-1000.0,0.000149,2]
[355193515,1740984638824,-1000.0,0.000149,2]
[355193516,1740984638834,-1000.0,0.000149,2]
[355193517,1740984638844,-1000.0,0.000149,2]
[355193518,1740984638853,-1000.0,0.000149,2]
[355193519,1740984638863,-1000.0,0.000149,2]
[355193520,1740984638873,-1000.0,0.000149,2]
[355193521,1740984638882,-1000.0,0.000149,2]
[355193522,1740984638891,-1000.0,0.000149,2]
[355193523,1740984638901,-1000.0,0.000149,2]
[355193524,1740984638910,-1000.0,0.000149,2]
[355193525,1740984638920,-1000.0,0.000149,2]
[355193526,1740984638929,-1000.0,0.000149,2]
[355193527,1740984638939,-1000.0,0.000149,2]
[355193528,1740984638949,-1000.0,0.000149,2]
[355193529,1740984638958,-1000.0,0.000149,2]
[355193530,1740984638972,-1000.0,0.000149,2]
[355193531,1740984638982,-1000.0,0.000149,2]
[355193532,1740984638991,-1000.0,0.000149,2]
[355193533,1740984639001,-1000.0,0.000149,2]
[355193534,1740984639011,-1000.0,0.000149,2]
[355193535,1740984639020,-1000.0,0.000149,2]
[355193536,1740984639029,-1000.0,0.000149,2]
[355193537,1740984639039,-1000.0,0.000149,2]
[355193538,1740984639049,-1000.0,0.000149,2]
[355193539,1740984639058,-1000.0,0.000149,2]
[355193540,1740984639068,-1000.0,0.000149,2]
[355193541,1740984639080,-1000.0,0.000149,2]
[355193542,1740984639089,-1000.0,0.000149,2]
[355193543,1740984639098,-1000.0,0.000149,2]
[355193544,1740984639108,-1000.0,0.000149,2]
[355193545,1740984639117,-274.0,0.000149,2]
[355193546,1740984639127,-1000.0,0.000149,2]
[355193547,1740984639136,-1000.0,0.000149,2]
[355193548,1740984639146,-1000.0,0.000149,2]
[355193549,1740984639155,-153.60320141,0.000149,2]
[355193550,1740984639165,-178.56556792,0.000149,2]
[355193551,1740984639174,-3758.5927125,0.000149,2]
[355193552,1740984639183,-155.04959,0.000149,2]
[355193553,1740984639194,-221.34422693,0.000149,2]
[355193554,1740984639203,-283.28,0.00014916,2]
[355193555,1740984639212,-503.42795211,0.00014973,2]
[355193556,1740984639222,-500.0,0.00014973,2]
[355193557,1740984639231,-170.89734822,0.0001499,2]
[355193558,1740984639242,-170.69,0.00014998,2]
[355193559,1740984639253,-500.0,0.00014999,2]
[355193560,1740984639263,-1077.82461428,0.00014999,5]
[355193561,1740984639272,-301.63219179,0.00014999,2]
[355193562,1740984639282,-14187.34558058,0.00015,2]
[355193563,1740984639295,-6770.74520365,0.00015,2]
[355193564,1740984639306,-2437.59954358,0.00015,2]
[355193565,1740984639317,-417.93362683,0.00015,2]
[355193566,1740984639331,-20000.0,0.00015,2]
[355193567,1740984639343,-487.64485839,0.00015,2]
[355193568,1740984639354,-565.40550735,0.00015,2]
[355193569,1740984639366,-271.0,0.00015,2]
[355193570,1740984639377,-16382.69979998,0.00015,2]
[355193573,1740984639893,-1028.93609989,0.00015,2]
[355193574,1740984639905,-682.60523184,0.00015,2]
[355193575,1740984639918,-1034.355,0.00015,2]
[355193576,1740984639946,-500.0,0.00015,2]
[355193577,1740984639958,-577.46205938,0.00015,2]
[355193578,1740984639969,-3285.62233939,0.00015,2]
[355193579,1740984639997,-2429.4141106,0.00015,2]
[355193580,1740984640050,-12063.32340004,0.00015,2]
[355193581,1740984640062,-26340.36827717,0.00015,2]
[355193582,1740984640111,-6492.98264759,0.00015,2]
[355193583,1740984640123,-955.0,0.00015,2]
[355193584,1740984640161,-489.02277057,0.00015,2]
[355193585,1740984640173,-1328.12717403,0.00015,2]
[355193586,1740984640185,-52314.45260923,0.00015,2]
[355193587,1740984640196,-5132.898045,0.00015,2]
[355193588,1740984640208,-490.0,0.00015,2]
[355193589,1740984640220,-507.68514749,0.00015,2]
[355193590,1740984640232,-861.62562266,0.00015,2]
[355193591,1740984640244,-2222.62780469,0.00015,2]
[355193592,1740984640256,-494.99999995,0.00015,2]
[355193593,1740984640271,-536.76128038,0.00015,2]
[355193594,1740984640282,-686.12109916,0.00015,2]
[355193595,1740984640294,-391.21630019,0.00015,2]
[355193596,1740984640388,-654.839996,0.00015,2]
[355193597,1740984640400,-1116.74828944,0.00015,2]
[355193598,1740984640412,-10953.2581042,0.00015,2]
[355193621,1740984643053,-864.72532184,0.00014899,2]
[355193622,1740984643063,-472.15125283,0.00015,2]
[355193623,1740984643266,-1849.17996934,0.00015,2]
[355193624,1740984643279,-19852.51822778,0.00015,2]
[355193625,1740984643291,-485.305,0.00015,2]
[355193626,1740984643302,-506.62630079,0.00015,2]
[355193627,1740984643314,-352.72799642,0.00015,2]
[355193628,1740984643327,-61653.07095395,0.00015,2]
[355193629,1740984643339,-643.3159777,0.00015,2]
[355193630,1740984643412,-631.44,0.00015,2]
[355193631,1740984643423,-1356.4999996,0.00015,2]
[355193632,1740984643437,-8848.34865283,0.00015,2]
[355193633,1740984643449,-9320.98184442,0.00015,2]
[355193634,1740984643460,-18581.32021119,0.00015,2]
[355193635,1740984643473,-375.3371628,0.00015,2]
[355193636,1740984643484,-2054.96503247,0.00015,2]
[355193637,1740984643496,-2125.50104279,0.00015,2]
[355193639,1740984643508,-1222.2286472,0.00015,2]
[355193640,1740984643521,-2513.09890421,0.00015,2]
[355193641,1740984643533,-2490.6707393,0.00015,2]
[355193642,1740984643545,-2903.04000028,0.00015,2]
[355193643,1740984643556,-2696.30004,0.00015,2]
[355193644,1740984643567,-2502.0,0.00015,2]
[355193646,1740984643579,-220464.69808672,0.00015,2]
[355193666,1740984645934,-113336.85086669,0.00015,2]
[355193669,1740984645947,-685.37368013,0.00015,2]
[355193671,1740984645959,-518.2515525,0.00015,2]
[355193677,1740984646007,-1074.89149422,0.00015,2]
[355193679,1740984646019,-1081.03146575,0.00015,2]
[355193682,1740984646073,-1201.94999959,0.00015,2]
[355193683,1740984646091,-687.82499938,0.00015,2]
[355193684,1740984646104,-685.01488817,0.00015,2]
[355193685,1740984646117,-1187.68980802,0.00015,2]
[355193686,1740984646155,-192.44218356,0.00014899,2]
[355193687,1740984646166,-1459.20781622,0.00015,2]
[355193688,1740984646179,-5424.5327073,0.00015,2]
[355193689,1740984646215,-251.10073731,0.00015,2]
[355193690,1740984646228,-819.32545402,0.00015,2]
[355193691,1740984646240,-1546.58900404,0.00015,2]
[355193692,1740984646252,-467.96961399,0.00015,2]
[355193693,1740984646277,-13706.64335104,0.00015,2]
[355193694,1740984646539,-2907.01034443,0.00015,2]
[355193695,1740984646555,-1444.60801113,0.00015,2]
[355193696,1740984646566,-1417.56443875,0.00015,2]
[355193697,1740984646578,-4800.1153851,0.00015,2]
[355193698,1740984646592,-8569.6,0.00015,2]
[355193699,1740984646603,-46250.0,0.00015,2]
[355193700,1740984646615,-312.81640703,0.00015,2]
[355193701,1740984646627,-1526.77504163,0.00015,2]
[355193702,1740984646638,-1077.92,0.00015,2]
[355193703,1740984646651,-268.04796464,0.00015,2]
[355193711,1740984648628,150.0,0.00014732,2]
[355193712,1740984648784,150.0,0.00014748,2]
[355193713,1740984648841,150.0,0.00014848,2]
[355193714,1740984648971,150.0,0.00014804,2]
[355193715,1740984649006,150.0,0.00014734,2]
[355193716,1740984649060,150.0,0.00014799,2]
[355193717,1740984654221,500.0,0.000144,5]
[355193718,1740984656319,1000.0,0.000145,5]
[355193719,1740984658466,1500.0,0.000146,5]
[355193720,1740984660526,2000.0,0.000147,5]
[355193721,1740984662625,2500.0,0.000148,5]
[355193723,1740984697030,2469.2597,0.00014797,2]
[355193725,1740984750595,27946.8551,0.00014797,2]
[355193726,1740984802749,250.0,0.00013,2]
[355193727,1740984811050,150.0,0.00014822,2]
[355193728,1740984834096,247.97,0.0001446,2]
[355193729,1740984843914,150.0,0.0001446,7]
[355193730,1740984846587,3610.96,0.00014576,2]
[355193731,1740984847216,525.649338,0.00014782,2]
[355193732,1740984854578,281.0,0.000148,2]
[355193733,1740984868246,955.89352604,0.000148,2]
[355193734,1740984870084,417.93621033,0.00014723,2]
[355193741,1740985014885,412.75957,0.0001485,2]
[355193742,1740985017724,656.81,0.00014301,2]
[355193743,1740985017919,656.81,0.00014384,2]
[355193744,1740985018113,656.81,0.00014467,2]
[355193745,1740985018324,656.81,0.00014549,2]
[355193746,1740985018744,656.81,0.00014632,2]
[355193747,1740985018820,656.81,0.00014715,2]
[355193748,1740985018951,656.81,0.00014798,2]
[355193749,1740985065105,2018.21,0.00014161,2]
[355193750,1740985079494,200.0,0.00014161,2]
[355193751,1740985102579,3913.08705828,0.000148,2]
[355193752,1740985147804,166.66666666,0.00014779,2]
[355193753,1740985180891,-500.0,0.000149,5]
[355193754,1740985184148,500.0,0.00014132,2]
[355193755,1740985220580,250.0,0.000148,2]
[355193756,1740985239797,197.87,0.00014126,2]
[355193757,1740985252237,650.0,0.000148,2]
[355193758,1740985277185,150.0,0.00014844,2]
[355193759,1740985277301,150.0,0.00014847,2]
[355193760,1740985277515,150.0,0.00014846,2]
[355193761,1740985277569,150.0,0.00014829,2]
[355193762,1740985277609,150.0,0.00014818,2]
[355193763,1740985277729,150.0,0.00014752,2]
[355193764,1740985282888,-150.0,0.00014861,2]
[355193765,1740985296170,157.83816242,0.00014776,2]
[355193766,1740985296203,1000.0,0.00014824,2]
[355193767,1740985301261,250.0,0.00014056,2]
[355193768,1740985320886,301.98,0.00014056,2]
[355193769,1740985355192,433.30636765,0.00014753,2]
[355193770,1740985363019,894.1982,0.0001485,2]
[355193771,1740985388730,267.2811,0.000148,2]
[355193772,1740985396253,500.0,0.00014781,2]
[355193773,1740985396609,500.0,0.0001483,2]
[355193774,1740985402467,200.0,0.0001483,2]
[355193775,1740985407376,243.09,0.00014065,2]
[355193776,1740985410964,540.49,0.00014065,2]
[355193777,1740985439272,10000.0,0.00025,90]
[355193778,1740985457516,150.0,0.00014726,2]
[355193779,1740985457650,150.0,0.00014727,2]
[355193780,1740985457685,150.0,0.00014788,2]
[355193781,1740985457723,150.0,0.00014743,2]
[355193782,1740985457894,150.0,0.00014843,2]
[355193783,1740985458045,150.0,0.00014765,2]
[355193784,1740985458107,150.0,0.00014777,2]
[355193785,1740985458142,150.0,0.00014805,2]
[355193786,1740985458173,-150.0,0.00014862,2]
[355193787,1740985458207,150.0,0.00014821,2]
[355193788,1740985458282,150.0,0.00014783,2]
[355193789,1740985458319,150.0,0.00014813,2]
[355193790,1740985458386,150.0,0.00014754,2]
[355193791,1740985458737,150.0,0.00014793,2]
[355193792,1740985458810,150.0,0.00014799,2]
[355193793,1740985459049,150.0,0.00014763,2]
[355193794,1740985459087,150.0,0.00014767,2]
[355193795,1740985459232,150.0,0.00014778,2]
[355193796,1740985459433,150.0,0.00014823,2]
[355193797,1740985459533,150.0,0.00014785,2]
[355193798,1740985460074,150.0,0.00014758,2]
[355193801,1740985469091,153.5175473,0.00014784,2]
[355193803,1740985480251,200.0,0.00013948,2]
[355193804,1740985499422,615.6406,0.000148,2]
[355193805,1740985514660,150.0,0.00013948,2]
[355193806,1740985521514,1000.0,0.00013948,2]
[355193807,1740985522513,209.3,0.00014851,2]
[355193808,1740985530789,222.9586,0.000148,2]
[355193809,1740985532788,756.4,0.0001203,2]
[355193810,1740985533002,756.4,0.00014294,2]
[355193811,1740985536719,156.0664,0.000148,2]
[355193817,1740985562760,267.2811,0.000148,2]
[355193818,1740985569249,1107.1508,0.000148,2]
[355193819,1740985587334,571.08,0.00013948,2]
[355193820,1740985593675,535.8778,0.000148,2]
[355193821,1740985603426,200.0,0.00013946,2]
[355193823,1740985640669,23900.0,0.00013939,2]
[355193824,1740985645656,505.82,0.00013939,2]
[355193825,1740985655805,462.63,0.00013939,2]
[355193826,1740985656010,462.63,0.00014636,2]
[355193828,1740985701935,169.83,0.00011151,2]
[355193829,1740985701968,169.83,0.00013939,2]
[355193830,1740985711342,343.96631,0.0001485,2]
[355193831,1740985713080,476.34,0.00013939,2]
[355193832,1740985755709,500.0,0.00013939,2]
[355193834,1740985810010,163.42,0.00013939,2]
[355193835,1740985820130,184.55,0.00014487,2]
[355193874,1740985832216,-150.0,0.00014853,2]
[355193876,1740985832226,-550.0,0.00014858,2]
[355193878,1740985832235,-150.0,0.00014862,2]
[355193880,1740985832245,-150.0,0.00014863,2]
[355193881,1740985832254,-150.0,0.00014875,2]
[355193882,1740985832263,-150.0,0.00014879,2]
[355193883,1740985832272,-500.0,0.00014879,2]
[355193884,1740985832282,-200.0,0.00014879,2]
[355193885,1740985832295,-150.0,0.0001488,2]
[355193886,1740985832305,-656.81,0.0001488,2]
[355193887,1740985832314,-1216.40602999,0.00014881,2]
[355193888,1740985832326,-29544.78506149,0.00014881,2]
[355193889,1740985832335,-150.0,0.00014884,2]
[355193890,1740985832344,-2661.62,0.00014884,2]
[355193891,1740985832353,-150.99,0.00014884,2]
[355193892,1740985832362,-299.99,0.00014884,2]
[355193893,1740985832371,-499.99,0.00014884,2]
[355193894,1740985832384,-1118.54,0.00014884,2]
[355193895,1740985832394,-1578.87,0.00014884,2]
[355193896,1740985832403,-999.99,0.00014884,2]
[355193897,1740985832413,-150.0,0.00014886,2]
[355193898,1740985832422,-1647.08179578,0.00014886,2]
[355193899,1740985832432,-1647.08179576,0.00014888,2]
[355193900,1740985832442,-1647.08179576,0.00014889,2]
[355193901,1740985832451,-23965.99973955,0.0001489,2]
[355193902,1740985832461,-1647.08179576,0.00014891,2]
[355193903,1740985832471,-150.0,0.00014891,2]
[355193904,1740985832480,-1647.08179576,0.00014892,2]
[355193905,1740985832489,-1647.08179576,0.00014894,2]
[355193906,1740985832498,-1647.08179576,0.00014895,2]
[355193907,1740985832508,-1647.08179576,0.00014897,2]
[355193908,1740985832517,-469.61476567,0.00014897,2]
[355193909,1740985832527,-150.0,0.00014898,2]
[355193910,1740985832536,-1647.08179576,0.00014898,2]
[355193911,1740985832546,-876.27743109,0.000149,2]
[355193912,1740985832555,-500.0,0.000149,2]
[355193913,1740985832565,-638.7738,0.000149,2]
[355193914,1740985832575,-165.63700521,0.000149,2]
[355193915,1740985832584,-172.45420776,0.000149,2]
[355193916,1740985832594,-2619.0114,0.000149,2]
[355193917,1740985832604,-1674.3822,0.000149,2]
[355193918,1740985832613,-1143.8598,0.000149,2]
[355193919,1740985832623,-2616.234,0.000149,2]
[355193920,1740985832637,-356.8879,0.000149,2]
[355193921,1740985832646,-27705.8554,0.000149,2]
[355193922,1740985832656,-1647.08179576,0.000149,2]
[355193924,1740985832666,-20964.49030254,0.000149,2]
[355193926,1740985832678,-1140.61917482,0.000149,2]
[355193929,1740985832691,-897.93482776,0.000149,2]
[355193931,1740985832701,-158.06998855,0.000149,2]
[355193933,1740985832710,-158.06998853,0.000149,2]
[355193935,1740985832719,-158.06998853,0.000149,2]
[355193937,1740985832728,-158.06998853,0.000149,2]
[355193938,1740985832737,-158.06998853,0.000149,2]
[355193940,1740985832746,-158.06998853,0.000149,2]
[355193943,1740985832756,-158.06998853,0.000149,2]
[355193945,1740985832765,-158.06998853,0.000149,2]
[355193946,1740985832775,-166.8008187,0.000149,2]
[355193948,1740985832784,-221.34422693,0.000149,2]
[355193949,1740985832794,-309.4882102,0.000149,2]
[355193950,1740985832804,-969.42864464,0.000149,2]
[355193951,1740985832814,-7517.185425,0.000149,2]
[355193952,1740985832827,-167.31948892,0.000149,2]
[355193953,1740985832837,-150.0,0.00014905,2]
[355193954,1740985832846,-150.0,0.00014906,2]
[355193955,1740985832855,-150.0,0.00014911,2]
[355193956,1740985832867,-150.0,0.00014917,2]
[355193957,1740985832877,-150.0,0.00014922,2]
[355193958,1740985832891,-150.0,0.00014923,2]
[355193959,1740985832902,-150.0,0.00014927,2]
[355193960,1740985832912,-150.0,0.00014931,2]
[355193961,1740985832922,-163.42,0.00014934,2]
[355193962,1740985832931,-150.0,0.00014939,2]
[355193963,1740985832943,-150.0,0.0001495,2]
[355193964,1740985832952,-150.0,0.0001495,2]
[355193965,1740985832961,-150.0,0.00014954,2]
[355193966,1740985832971,-150.0,0.00014954,2]
[355193967,1740985832980,-150.0,0.00014959,2]
[355193968,1740985832990,-656.81,0.00014963,2]
[355193969,1740985833000,-150.0,0.00014967,2]
[355193970,1740985833010,-150.0,0.00014969,2]
[355193971,1740985833019,-150.0,0.00014972,2]
[355193972,1740985833029,-162.51057752,0.00014973,2]
[355193973,1740985833038,-500.0,0.00014973,2]
[355193974,1740985833047,-150.0,0.00014974,2]
[355193975,1740985833057,-150.0,0.00014979,2]
[355193976,1740985833067,-150.0,0.0001498,2]
[355193977,1740985833077,-150.0,0.00014985,2]
[355193978,1740985833087,-15441.0,0.00014986,2]
[355193979,1740985833096,-368.0,0.00014986,2]
[355193980,1740985833106,-177.62153871,0.0001499,2]
[355193981,1740985833116,-177.62153871,0.0001499,2]
[355193982,1740985833126,-150.0,0.00014991,2]
[355193983,1740985833140,-310.69340196,0.00014995,2]
[355193984,1740985833150,-630.7022948,0.00014996,2]
[355193985,1740985833161,-9098.744779,0.00014996,2]
[355193986,1740985833171,-500.0,0.00014999,2]
[355193987,1740985833181,-604.04117462,0.00014999,2]
[355193988,1740985833191,-500.0,0.00014999,2]
[355193989,1740985833200,-500.0,0.00014999,2]
[355193990,1740985833211,-500.0,0.00014999,2]
[355193991,1740985833221,-500.0,0.00014999,2]
[355193992,1740985833231,-428.98428924,0.00014999,2]
[355193993,1740985833241,-385.76594458,0.00014999,2]
[355193994,1740985833251,-300.0,0.00014999,2]
[355193995,1740985833261,-19935.26860129,0.00015,2]
[355193996,1740985833274,-299130.29566632,0.00015,2]
[355193997,1740985833286,-235856.66281798,0.00015,2]
[355193998,1740985833306,-3677.79412,0.00015,2]
[355193999,1740985833318,-889.86695496,0.00015,2]
[355194000,1740985833329,-1006.846155,0.00015,2]
[355194001,1740985833353,-16153.425467,0.00015,2]
[355194002,1740985833369,-508.47198714,0.00015,2]
[355194016,1740985838143,-16028.59353998,0.00015,2]
[355194017,1740985838155,-18397.0593128,0.00015,2]
[355194018,1740985838188,-4741.76454232,0.00015,2]
[355194019,1740985838238,-1249.3,0.00015,2]
[355194020,1740985838250,-118053.48113544,0.00015,2]
[355194021,1740985838304,-256.91980793,0.00015,2]
[355194022,1740985838317,-6269.49777717,0.00015,2]
[355194023,1740985838358,-489.16191876,0.00015,2]
[355194024,1740985838369,-19535.89949012,0.00015,2]
[355194025,1740985838380,-1191.28976812,0.00015,2]
[355194026,1740985838395,-1510.92569718,0.00015,2]
[355194101,1740985840077,433.30636765,0.00014585,2]
[355194102,1740985840447,-594.0,0.00015,2]
[355194103,1740985840459,-372.87603894,0.00015,2]
[355194104,1740985840572,-951.88,0.00015,2]
[355194105,1740985840584,-339.648,0.00015,2]
[355194106,1740985840679,-486.0,0.00015,2]
[355194107,1740985840691,-311.26099999,0.00015,2]
[355194108,1740985840719,-366.366,0.00015,2]
[355194109,1740985840731,-45909.0,0.00015,2]
[355194164,1740985843305,-183626.62626328,0.00015,2]
[355194173,1740985843394,-9197.2,0.00015,2]
[355194185,1740985843510,-329.65981151,0.00015,2]
[355194186,1740985843521,-4902.36500065,0.00015,2]
[355194187,1740985843532,-8015.69996,0.00015,2]
[355194188,1740985843544,-8388.95015,0.00015,2]
[355194189,1740985843564,-807.60311163,0.00015,2]
[355194190,1740985843575,-2500.22645171,0.00015,2]
[355194207,1740985846302,-634.0,0.00015,2]
[355194209,1740985846314,-686.19752844,0.00015,2]
[355194210,1740985846438,-846.03735233,0.00015,2]
[355194211,1740985846450,-466.28673742,0.00015,2]
[355194212,1740985846463,-972.97200026,0.00015,2]
[355194213,1740985846474,-1003.25466948,0.00015,2]
[355194214,1740985846513,-18406.0,0.00015,2]
[355194215,1740985846550,-1472.0,0.00015,2]
[355194216,1740985846562,-1340.5,0.00015,2]
[355194230,1740985880837,480.6567,0.000148,2]
[355194231,1740985937179,150.0,0.00014808,2]
[355194232,1740985937231,150.0,0.00014824,2]
[355194233,1740985937282,150.0,0.00014834,2]
[355194234,1740985937336,150.0,0.0001478,2]
[355194235,1740985937445,150.0,0.0001469,2]
[355194236,1740985937500,150.0,0.00014719,2]
[355194237,1740985952494,10000.0,0.00025,90]
[355194238,1740985966113,9480.4016,0.000148,2]
[355194239,1740985990694,3890.538,0.000148,2]
[355194240,1740986059420,745.16517,0.0001485,2]
[355194241,1740986117263,150.0,0.00014784,2]
[355194242,1740986117301,150.0,0.00014754,2]
[355194243,1740986117335,150.0,0.00014682,2]
[355194244,1740986117376,150.0,0.00014731,2]
[355194245,1740986117415,150.0,0.00014822,2]
[355194246,1740986117453,150.0,0.0001481,2]
[355194247,1740986117492,150.0,0.00014841,2]
[355194248,1740986117527,150.0,0.00014816,2]
[355194249,1740986117564,150.0,0.00014725,2]
[355194250,1740986117605,150.0,0.00014771,2]
[355194251,1740986117640,150.0,0.00014724,2]
[355194252,1740986117703,150.0,0.00014828,2]
[355194253,1740986117737,150.0,0.00014634,2]
[355194254,1740986118028,150.0,0.00014683,2]
[355194255,1740986118070,150.0,0.00014655,2]
[355194256,1740986118104,150.0,0.00014836,2]
[355194257,1740986118138,150.0,0.00014809,2]
[355194258,1740986118179,150.0,0.00014675,2]
[355194259,1740986118220,150.0,0.0001481,2]
[355194260,1740986118256,150.0,0.00014643,2]
[355194261,1740986118290,150.0,0.00014831,2]
[355194262,1740986118332,150.0,0.00014696,2]
[355194263,1740986118366,150.0,0.00014709,2]
[355194264,1740986118400,150.0,0.00014744,2]
[355194265,1740986118440,150.0,0.00014844,2]
[355194266,1740986118474,150.0,0.00014829,2]
[355194267,1740986118508,150.0,0.00014828,2]